fUSD/lending_fUSD_20260130
["ID","MTS","AMOUNT","RATE_DAILY","PERIOD"]
[404084915,1769799049083,-20453.46079029,0.000179,3]
[404084916,1769799049093,-1483.00304431,0.000179,2]
[404084917,1769799049104,-17325.09362955,0.000179,2]
[404084918,1769799049115,-331.01914912,0.000179,3]
[404084919,1769799049126,-1019.92241892,0.000179,2]
[404084920,1769799049136,-23076.90666599,0.000179,2]
[404084921,1769799049147,-236.2153189,0.000179,2]
[404084922,1769799049158,-1000.0,0.00017907,2]
[404084923,1769799049168,-5433.0,0.00017917,2]
[404084924,1769799049181,-500.0,0.00017918,2]
[404084925,1769799049192,-1000.0,0.00017931,2]
[404084926,1769799049202,-151.0,0.00017945,2]
[404084927,1769799049214,-500.0,0.00017947,2]
[404084928,1769799049224,-500.0,0.00017947,2]
[404084929,1769799049238,-208.77047208,0.00017947,2]
[404084930,1769799049249,-523.46,0.00017947,2]
[404084931,1769799049261,-523.46,0.00017947,2]
[404084932,1769799049271,-2000.0,0.00017947,2]
[404084933,1769799049282,-500.0,0.00017947,2]
[404084934,1769799049294,-500.0,0.00017947,2]
[404084935,1769799049304,-500.0,0.00017947,2]
[404084936,1769799049315,-500.0,0.00017947,2]
[404084937,1769799049325,-500.0,0.00017947,2]
[404084938,1769799049336,-500.0,0.00017947,2]
[404084939,1769799049348,-500.0,0.00017947,2]
[404084940,1769799049358,-500.0,0.00017947,2]
[404084941,1769799049370,-500.0,0.00017947,2]
[404084942,1769799049380,-500.0,0.00017947,2]
[404084943,1769799049392,-500.0,0.00017947,2]
[404084944,1769799049402,-187.94088231,0.00017947,2]
[404084945,1769799049412,-500.0,0.00017947,2]
[404084946,1769799049422,-500.0,0.00017947,2]
[404084947,1769799049432,-427120.5158324,0.00017948,2]
[404084948,1769799049443,-11157.8232994,0.00017948,2]
[404084949,1769799049452,-151.0,0.00017948,2]
[404084950,1769799049463,-151.0,0.00017948,2]
[404084951,1769799049472,-170.231382,0.00017948,2]
[404084952,1769799049483,-151.0,0.00017948,2]
[404084953,1769799049493,-151.0,0.00017948,2]
[404084954,1769799049504,-151.0,0.00017948,2]
[404084955,1769799049514,-151.0,0.00017948,2]
[404084956,1769799049524,-151.0,0.00017948,2]
[404084957,1769799049535,-151.0,0.00017948,2]
[404084958,1769799049545,-415.773055,0.00017948,2]
[404084959,1769799049556,-415.773055,0.00017948,2]
[404084960,1769799049567,-415.773055,0.00017948,2]
[404084961,1769799049578,-415.773055,0.00017948,2]
[404084962,1769799049588,-151.0,0.00017948,2]
[404084963,1769799049599,-151.0,0.00017948,2]
[404084964,1769799049609,-151.0,0.00017948,2]
[404084965,1769799049621,-151.0,0.00017948,2]
[404084966,1769799049632,-151.0,0.00017948,2]
[404084967,1769799049642,-367.054916,0.00017948,2]
[404084968,1769799049652,-151.0,0.00017948,2]
[404084969,1769799049663,-367.054916,0.00017948,2]
[404084970,1769799049674,-452.447922,0.00017948,2]
[404084971,1769799049685,-151.0,0.00017948,2]
[404084972,1769799049697,-367.054916,0.00017948,2]
[404084973,1769799049707,-367.054916,0.00017948,2]
[404084974,1769799049717,-452.447922,0.00017948,2]
[404084975,1769799049728,-452.447922,0.00017948,2]
[404084976,1769799049740,-452.447922,0.00017948,2]
[404084977,1769799049751,-151.0,0.00017948,2]
[404084978,1769799049761,-268.782197,0.00017948,2]
[404084979,1769799049772,-500.0,0.00017955,2]
[404084980,1769799049782,-500.0,0.00017972,2]
[404084981,1769799049793,-500.0,0.00017973,2]
[404084982,1769799049803,-500.0,0.00017973,2]
[404084983,1769799049813,-500.0,0.00017973,2]
[404084984,1769799049823,-500.0,0.00017973,2]
[404084985,1769799049834,-500.0,0.00017973,2]
[404084986,1769799049844,-500.0,0.00017973,2]
[404084987,1769799049854,-500.0,0.00017973,2]
[404084988,1769799049865,-500.0,0.00017973,2]
[404084989,1769799049876,-500.0,0.00017973,2]
[404084990,1769799049887,-500.0,0.00017973,2]
[404084991,1769799049897,-500.0,0.00017973,2]
[404084992,1769799049908,-500.0,0.00017973,2]
[404084993,1769799049918,-208.33059439,0.00017973,2]
[404084994,1769799049929,-500.0,0.00017973,2]
[404084995,1769799049939,-150.0,0.00017973,2]
[404084996,1769799049949,-500.0,0.00017973,2]
[404084997,1769799049959,-500.0,0.00017973,2]
[404084998,1769799049970,-500.0,0.00017973,2]
[404084999,1769799049981,-161.46714206,0.00017973,2]
[404085000,1769799049991,-161.90727761,0.00017973,2]
[404085001,1769799050002,-500.0,0.00017973,2]
[404085002,1769799050012,-500.0,0.00017973,2]
[404085003,1769799050022,-500.0,0.00017973,2]
[404085004,1769799050032,-500.0,0.00017973,2]
[404085005,1769799050042,-161.13076084,0.00017973,2]
[404085006,1769799050053,-160.00319068,0.00017973,2]
[404085007,1769799050063,-432.02224032,0.00017973,2]
[404085008,1769799050073,-160.11295309,0.00017973,2]
[404085009,1769799050083,-500.0,0.00017973,2]
[404085010,1769799050094,-158.22969695,0.00017973,2]
[404085011,1769799050105,-333.51196878,0.00017973,2]
[404085012,1769799050115,-436.25526408,0.00017973,2]
[404085013,1769799050126,-500.0,0.00017973,2]
[404085014,1769799050136,-500.0,0.00017973,2]
[404085015,1769799050146,-500.0,0.00017973,2]
[404085016,1769799050156,-175.57287607,0.00017973,2]
[404085017,1769799050167,-500.0,0.00017973,2]
[404085018,1769799050182,-500.0,0.00017973,2]
[404085019,1769799050192,-500.0,0.00017973,2]
[404085020,1769799050204,-500.0,0.00017973,2]
[404085021,1769799050217,-500.0,0.00017973,2]
[404085022,1769799050228,-500.0,0.00017973,2]
[404085023,1769799050241,-160.13080306,0.00017973,2]
[404085024,1769799050252,-340.31348241,0.00017973,2]
[404085025,1769799050263,-210.27851574,0.00017973,2]
[404085026,1769799050274,-500.0,0.00017973,2]
[404085027,1769799050284,-160.23001291,0.00017973,2]
[404085028,1769799050294,-501.03562757,0.00017973,2]
[404085029,1769799050305,-500.0,0.00017973,2]
[404085030,1769799050315,-169.6863681,0.00017973,2]
[404085031,1769799050327,-500.0,0.00017973,2]
[404085032,1769799050341,-500.0,0.00017973,2]
[404085033,1769799050352,-500.0,0.00017973,2]
[404085034,1769799050363,-500.42764262,0.00017973,2]
[404085035,1769799050374,-500.0,0.00017973,2]
[404085036,1769799050384,-500.0,0.00017973,2]
[404085037,1769799050395,-500.0,0.00017973,2]
[404085038,1769799050406,-471.45100711,0.00017973,2]
[404085039,1769799050417,-500.0,0.00017973,2]
[404085040,1769799050427,-501.19732692,0.00017973,2]
[404085041,1769799050438,-500.0,0.00017973,2]
[404085042,1769799050449,-512.27368738,0.00017973,2]
[404085043,1769799050460,-509.35254647,0.00017973,2]
[404085044,1769799050472,-500.0,0.00017973,2]
[404085045,1769799050487,-500.0,0.00017973,2]
[404085046,1769799050500,-500.0,0.00017973,2]
[404085047,1769799050511,-392.26050896,0.00017973,2]
[404085048,1769799050524,-500.0,0.00017973,2]
[404085049,1769799050535,-500.0,0.00017973,2]
[404085050,1769799050545,-309.21369256,0.00017973,2]
[404085051,1769799050992,-500.0,0.00017973,2]
[404085052,1769799051011,-208.78313746,0.00017973,2]
[404085053,1769799051028,-284.37159555,0.00017973,2]
[404085054,1769799051039,-162.64188199,0.00017973,2]
[404085055,1769799051048,-500.0,0.00017973,2]
[404085056,1769799051057,-162.07893444,0.00017973,2]
[404085057,1769799051066,-500.0,0.00017973,2]
[404085058,1769799051075,-500.29869688,0.00017973,2]
[404085059,1769799051084,-500.0,0.00017973,2]
[404085060,1769799051094,-500.0,0.00017973,2]
[404085061,1769799051103,-165.89161412,0.00017973,2]
[404085062,1769799051112,-500.0,0.00017973,2]
[404085063,1769799051121,-164.73666016,0.00017973,2]
[404085064,1769799051130,-500.0,0.00017973,2]
[404085065,1769799051140,-150.0,0.00017973,2]
[404085066,1769799051150,-327.92,0.00017978,2]
[404085067,1769799051159,-178.31607951,0.0001798,2]
[404085068,1769799051168,-500.0,0.00017989,2]
[404085069,1769799051177,-500.0,0.00017989,2]
[404085070,1769799051189,-651.63,0.00017989,2]
[404085071,1769799051198,-500.0,0.00017989,2]
[404085072,1769799051207,-500.0,0.00017989,2]
[404085073,1769799051217,-500.0,0.00017989,2]
[404085074,1769799051226,-500.0,0.00017989,2]
[404085075,1769799051238,-500.0,0.00017989,2]
[404085076,1769799051248,-4892.46383465,0.0001799,3]
[404085077,1769799051263,-569.76977508,0.0001799,3]
[404085078,1769799051489,-1.7e-07,0.0001799,3]
[404085079,1769799051620,-20.09615576,0.0001799,3]
[404085080,1769799051632,-1828.871493,0.0001799,3]
[404085081,1769799051648,-327.84001672,0.00017989,2]
[404085082,1769799052959,-1418.64,0.0001799,3]
[404085083,1769799052971,-26062.77370497,0.0001799,3]
[404085084,1769799052984,-20730.07034179,0.0001799,3]
[404085085,1769799052997,-7111.9600918,0.0001799,3]
[404085086,1769799053006,-200.0,0.0001799,2]
[404085087,1769799053015,-462.92596085,0.0001799,2]
[404085088,1769799053025,-462.92596085,0.0001799,2]
[404085089,1769799053035,-500.0,0.00017995,2]
[404085090,1769799053045,-500.0,0.00017995,2]
[404085091,1769799053054,-500.0,0.00017995,2]
[404085092,1769799053064,-500.0,0.00017995,2]
[404085093,1769799053073,-500.0,0.00017995,2]
[404085094,1769799053083,-202.655568,0.00017996,2]
[404085095,1769799053093,-202.655568,0.00017996,2]
[404085096,1769799053103,-202.655568,0.00017996,2]
[404085097,1769799053113,-151.0,0.00017996,2]
[404085098,1769799053122,-202.655568,0.00017996,2]
[404085099,1769799053132,-151.0,0.00017996,2]
[404085100,1769799053142,-151.0,0.00017997,2]
[404085101,1769799053152,-500.0,0.00017998,2]
[404085102,1769799053161,-500.0,0.00017998,2]
[404085103,1769799053173,-651.63,0.00017998,2]
[404085104,1769799053185,-500.0,0.00017998,2]
[404085105,1769799053195,-500.0,0.00017998,2]
[404085106,1769799053205,-500.0,0.00017998,2]
[404085107,1769799053215,-359.68757672,0.00017998,2]
[404085108,1769799053225,-500.0,0.00017998,2]
[404085109,1769799053237,-150.0,0.00017999,2]
[404085110,1769799053247,-173.99288078,0.00017999,2]
[404085111,1769799053258,-150.0,0.00017999,2]
[404085112,1769799053269,-300.0,0.00017999,2]
[404085113,1769799053279,-666.0,0.00017999,2]
[404085114,1769799053289,-300.0,0.00017999,2]
[404085115,1769799053298,-300.0,0.00017999,2]
[404085116,1769799053308,-666.0,0.00017999,2]
[404085117,1769799053317,-500.0,0.00017999,2]
[404085118,1769799053326,-500.0,0.00017999,2]
[404085119,1769799053336,-500.0,0.00017999,2]
[404085120,1769799053346,-500.0,0.00017999,2]
[404085121,1769799053357,-500.0,0.00017999,2]
[404085122,1769799053367,-500.0,0.00017999,2]
[404085123,1769799053376,-500.0,0.00017999,2]
[404085124,1769799053386,-500.0,0.00017999,2]
[404085125,1769799053395,-170.48211019,0.00017999,2]
[404085126,1769799053408,-167.61320523,0.00017999,2]
[404085127,1769799053418,-300.0,0.00017999,2]
[404085128,1769799053427,-714.96434436,0.00017999,2]
[404085129,1769799053437,-500.0,0.00017999,2]
[404085130,1769799053447,-500.0,0.00017999,2]
[404085131,1769799053456,-500.0,0.00017999,2]
[404085132,1769799053466,-500.0,0.00017999,2]
[404085133,1769799053658,-500.0,0.00017999,2]
[404085134,1769799053670,-500.0,0.00017999,2]
[404085135,1769799053680,-500.0,0.00017999,2]
[404085136,1769799053691,-500.0,0.00017999,2]
[404085137,1769799053701,-500.0,0.00017999,2]
[404085138,1769799053711,-624.9546901,0.00017999,2]
[404085139,1769799053721,-500.0,0.00017999,2]
[404085140,1769799053731,-619.86272074,0.00017999,2]
[404085141,1769799053748,-651.63,0.00017999,2]
[404085142,1769799053759,-651.63,0.00017999,2]
[404085143,1769799053771,-651.63,0.00017999,2]
[404085144,1769799053782,-651.63,0.00017999,2]
[404085145,1769799053792,-651.63,0.00017999,2]
[404085146,1769799053803,-651.63,0.00017999,2]
[404085147,1769799053814,-651.63,0.00017999,2]
[404085148,1769799053825,-651.63,0.00017999,2]
[404085149,1769799053836,-651.63,0.00017999,2]
[404085150,1769799053846,-651.63,0.00017999,2]
[404085151,1769799053858,-651.63,0.00017999,2]
[404085152,1769799053870,-651.63,0.00017999,2]
[404085153,1769799053880,-651.63,0.00017999,2]
[404085154,1769799053891,-651.63,0.00017999,2]
[404085155,1769799053902,-651.63,0.00017999,2]
[404085156,1769799053912,-651.65490146,0.00017999,2]
[404085157,1769799053923,-300.0,0.00017999,2]
[404085158,1769799053934,-466.47309168,0.00017999,2]
[404085159,1769799053944,-300.0,0.00017999,2]
[404085160,1769799053958,-523.46,0.00017999,2]
[404085161,1769799053975,-523.46,0.00017999,2]
[404085162,1769799053988,-523.46,0.00017999,2]
[404085163,1769799053998,-523.46,0.00017999,2]
[404085164,1769799054009,-523.46,0.00017999,2]
[404085165,1769799054024,-523.46,0.00017999,2]
[404085166,1769799054034,-523.46,0.00017999,2]
[404085167,1769799054044,-523.46,0.00017999,2]
[404085168,1769799054054,-523.46,0.00017999,2]
[404085169,1769799054063,-523.46,0.00017999,2]
[404085170,1769799054072,-106.19030621,0.00017999,2]
[404085171,1769799054085,-417.26969379,0.00017999,2]
[404085172,1769799054094,-523.46,0.00017999,2]
[404085173,1769799054104,-523.46,0.00017999,2]
[404085174,1769799054113,-523.46,0.00017999,2]
[404085175,1769799054122,-523.6940213,0.00017999,2]
[404085176,1769799054132,-500.0,0.00017999,2]
[404085177,1769799054141,-500.0,0.00017999,2]
[404085178,1769799054151,-500.0,0.00017999,2]
[404085179,1769799054161,-500.0,0.00017999,2]
[404085180,1769799054171,-304.99058322,0.00017999,2]
[404085181,1769799054183,-500.0,0.00017999,2]
[404085182,1769799054193,-500.0,0.00017999,2]
[404085183,1769799054202,-500.0,0.00017999,2]
[404085184,1769799054212,-449.0179094,0.00017999,2]
[404085185,1769799054223,-500.0,0.00017999,2]
[404085186,1769799054233,-500.0,0.00017999,2]
[404085187,1769799054243,-500.0,0.00017999,2]
[404085188,1769799054255,-500.0,0.00017999,2]
[404085189,1769799054264,-500.0,0.00017999,2]
[404085190,1769799054274,-500.0,0.00017999,2]
[404085191,1769799054283,-500.0,0.00017999,2]
[404085192,1769799054292,-500.0,0.00017999,2]
[404085193,1769799054302,-500.0,0.00017999,2]
[404085194,1769799054312,-500.0,0.00017999,2]
[404085195,1769799054322,-500.0,0.00017999,2]
[404085196,1769799054331,-500.0,0.00017999,2]
[404085197,1769799054341,-500.0,0.00017999,2]
[404085198,1769799054351,-500.0,0.00017999,2]
[404085199,1769799054360,-500.0,0.00017999,2]
[404085200,1769799054370,-500.0,0.00017999,2]
[404085201,1769799054380,-500.0,0.00017999,2]
[404085202,1769799054392,-500.0,0.00017999,2]
[404085203,1769799054402,-91.48713382,0.00017999,2]
[404085204,1769799054415,-408.51286618,0.00017999,2]
[404085205,1769799054425,-500.0,0.00017999,2]
[404085206,1769799054436,-326.00819699,0.00017999,2]
[404085207,1769799054446,-500.0,0.00017999,2]
[404085208,1769799054455,-500.0,0.00017999,2]
[404085209,1769799054467,-500.0,0.00017999,2]
[404085210,1769799054476,-500.0,0.00017999,2]
[404085211,1769799054487,-500.0,0.00017999,2]
[404085212,1769799054498,-500.0,0.00017999,2]
[404085213,1769799054507,-500.0,0.00017999,2]
[404085214,1769799054517,-500.0,0.00017999,2]
[404085215,1769799054526,-500.0,0.00017999,2]
[404085216,1769799054535,-469.89392629,0.00017999,2]
[404085217,1769799054545,-300.0,0.00017999,2]
[404085218,1769799054555,-300.0,0.00017999,2]
[404085219,1769799054566,-500.0,0.00017999,2]
[404085220,1769799054576,-555.96823655,0.00017999,2]
[404085221,1769799054586,-317.71756843,0.00017999,2]
[404085222,1769799054596,-500.0,0.00017999,2]
[404085223,1769799054606,-500.0,0.00017999,2]
[404085224,1769799054615,-500.0,0.00017999,2]
[404085225,1769799054625,-500.0,0.00017999,2]
[404085226,1769799054635,-500.0,0.00017999,2]
[404085227,1769799054646,-500.0,0.00017999,2]
[404085228,1769799054656,-500.0,0.00017999,2]
[404085229,1769799054665,-500.0,0.00017999,2]
[404085230,1769799054676,-626.22468569,0.00017999,2]
[404085231,1769799054685,-500.0,0.00017999,2]
[404085232,1769799054695,-500.0,0.00017999,2]
[404085233,1769799054704,-438.59588895,0.00017999,2]
[404085234,1769799054714,-115643.73374565,0.00018,2]
[404085235,1769799149223,-500.0,0.00013098,2]
[404085236,1769799149250,-1492.90782458,0.00013158,2]
[404085237,1769799151329,-195.17,0.00013158,2]
[404085238,1769799154008,-852.41999983,0.00013158,2]
[404085239,1769799156990,-500.00000017,0.00013158,2]
[404085240,1769799158105,-500.0,0.00013158,2]
[404085241,1769799161267,-1492.90782458,0.00013158,2]
[404085242,1769799165105,-1492.90782458,0.00013158,2]
[404085243,1769799494083,-462.2217,0.00013103,2]
[404085244,1769799494108,-448.16559277,0.00013131,2]
[404085245,1769799494141,-582.53454285,0.00013158,2]
[404085255,1769799845796,159.44,0.00012431,2]
[404085256,1769799868166,9166.73,0.00012787,2]
[404085257,1769800008095,-500.0,0.00013698,2]
[404085258,1769800008117,-500.0,0.00013698,2]
[404085259,1769800008138,-195.0,0.00013877,2]
[404085260,1769800008161,-488.14572893,0.00014055,2]
[404085261,1769800008182,-159.44,0.00014502,2]
[404085262,1769800008207,-2030.3192016,0.00014521,2]
[404085263,1769800008229,-1200.0,0.00015067,2]
[404085264,1769800008253,-147.41113042,0.00015067,2]
[404085285,1769800231946,-195.0,0.00015068,2]
[404085286,1769800231956,-966.15,0.00015285,2]
[404085287,1769800231966,-966.15,0.00015333,2]
[404085288,1769800231977,-966.15,0.00015382,2]
[404085289,1769800231987,-966.15,0.00015431,2]
[404085290,1769800231996,-300.0,0.00015464,2]
[404085291,1769800232007,-1200.0,0.00015464,2]
[404085292,1769800232017,-5533.017723,0.00015465,2]
[404085293,1769800232032,-3043.172277,0.00015465,2]
[404085294,1769800232042,-1600.0,0.00015479,2]
[404085295,1769800232051,-966.15,0.0001548,2]
[404085296,1769800232062,-966.15,0.00015528,2]
[404085297,1769800232072,-966.15,0.00015577,2]
[404085298,1769800232083,-300.0,0.00015581,2]
[404085299,1769800232092,-19160.75,0.00015582,2]
[404085300,1769800232103,-200.0,0.00015582,2]
[404085301,1769800232113,-966.15,0.00015626,2]
[404085302,1769800232124,-966.15,0.00015675,2]
[404085303,1769800232134,-966.15,0.00015723,2]
[404085304,1769800232144,-883.9,0.00015753,2]
[404085305,1769800232153,-299.99,0.00015753,2]
[404085306,1769800232163,-966.15,0.00015772,2]
[404085307,1769800232173,-711.36,0.00015799,2]
[404085308,1769800232183,-966.15,0.00015821,2]
[404085309,1769800232195,-363.0,0.00015864,2]
[404085310,1769800232205,-9999.99,0.00015864,2]
[404085311,1769800232215,-342.89,0.00015864,2]
[404085312,1769800232225,-3449.14,0.00015864,2]
[404085313,1769800232235,-966.15,0.0001587,2]
[404085314,1769800232244,-216.58,0.00015893,2]
[404085315,1769800232253,-150.99,0.00015893,2]
[404085316,1769800232263,-4999.99,0.00015893,2]
[404085318,1769800232272,-9999.99,0.00015893,2]
[404085320,1769800232282,-1000.0,0.00015918,2]
[404085321,1769800232291,-966.15,0.00015919,2]
[404085322,1769800232304,-966.15,0.00015967,2]
[404085323,1769800232313,-151.0,0.0001597,2]
[404085324,1769800232322,-151.0,0.0001597,2]
[404085325,1769800232332,-166.66,0.00016,2]
[404085326,1769800232342,-966.15,0.00016016,2]
[404085327,1769800232351,-966.15,0.00016065,2]
[404085328,1769800232360,-1818.0026,0.00016081,2]
[404085329,1769800232369,-1435.0,0.00016083,2]
[404085330,1769800232380,-966.15,0.00016114,2]
[404085331,1769800232389,-1249.0,0.00016115,2]
[404085332,1769800232398,-15408.91,0.00016116,2]
[404085333,1769800232407,-439.0,0.00016147,2]
[404085334,1769800232417,-966.15,0.00016162,2]
[404085335,1769800232427,-1800.0,0.00016168,2]
[404085336,1769800232436,-356.0,0.00016179,2]
[404085337,1769800232447,-10009.675934,0.00016181,2]
[404085338,1769800232456,-1099.0,0.00016201,2]
[404085339,1769800232466,-966.15,0.00016211,2]
[404085340,1769800232475,-637.0,0.00016233,2]
[404085341,1769800232485,-577.0,0.00016265,2]
[404085342,1769800232496,-746.0,0.00016297,2]
[404085343,1769800232506,-1538.0,0.0001633,2]
[404085344,1769800232515,-214.0,0.00016362,2]
[404085345,1769800232525,-500.0,0.00016363,2]
[404085346,1769800232535,-151.0,0.00016363,2]
[404085347,1769800232547,-151.0,0.00016363,2]
[404085348,1769800232557,-151.0,0.00016363,2]
[404085349,1769800232566,-151.0,0.00016363,2]
[404085350,1769800232576,-151.0,0.00016363,2]
[404085351,1769800232586,-151.0,0.00016363,2]
[404085352,1769800232596,-151.0,0.00016363,2]
[404085353,1769800232606,-151.0,0.00016363,2]
[404085354,1769800232615,-151.0,0.00016363,2]
[404085355,1769800232625,-500.0,0.00016363,2]
[404085356,1769800232634,-151.0,0.00016363,2]
[404085357,1769800232644,-500.0,0.00016363,2]
[404085358,1769800232653,-151.0,0.00016363,2]
[404085359,1769800232663,-500.0,0.00016363,2]
[404085360,1769800232672,-151.0,0.00016363,2]
[404085361,1769800232683,-151.0,0.00016363,2]
[404085362,1769800232693,-500.0,0.00016363,2]
[404085363,1769800232705,-151.0,0.00016363,2]
[404085364,1769800232716,-500.0,0.00016363,2]
[404085365,1769800232729,-151.0,0.00016363,2]
[404085366,1769800232745,-500.0,0.00016363,2]
[404085367,1769800232764,-151.0,0.00016363,2]
[404085368,1769800232779,-151.0,0.00016363,2]
[404085369,1769800232789,-151.0,0.00016363,2]
[404085370,1769800232798,-151.0,0.00016363,2]
[404085371,1769800232808,-151.0,0.00016363,2]
[404085372,1769800232818,-500.0,0.00016373,2]
[404085373,1769800232828,-500.0,0.00016373,2]
[404085374,1769800232838,-500.0,0.00016373,2]
[404085375,1769800232847,-500.0,0.00016373,2]
[404085376,1769800232858,-500.27683054,0.00016373,2]
[404085377,1769800232868,-500.0,0.00016373,2]
[404085378,1769800232878,-500.4902994,0.00016373,2]
[404085379,1769800232888,-168.06864137,0.00016373,2]
[404085380,1769800232898,-503.09870012,0.00016373,2]
[404085381,1769800232908,-500.0,0.00016373,2]
[404085382,1769800232919,-500.0,0.00016373,2]
[404085383,1769800232928,-541.28684359,0.00016373,2]
[404085384,1769800232942,-203.98074386,0.00016373,2]
[404085385,1769800232953,-500.0,0.00016373,2]
[404085386,1769800232963,-500.0,0.00016373,2]
[404085387,1769800232973,-500.0,0.00016373,2]
[404085388,1769800232984,-500.0,0.00016373,2]
[404085389,1769800232994,-500.0,0.00016373,2]
[404085390,1769800233004,-500.0,0.00016373,2]
[404085391,1769800233014,-500.0,0.00016373,2]
[404085392,1769800233024,-401.53067419,0.00016373,2]
[404085393,1769800233033,-500.0,0.00016373,2]
[404085394,1769800233044,-500.0,0.00016373,2]
[404085395,1769800233054,-500.0,0.00016373,2]
[404085396,1769800233066,-459.6118856,0.00016373,2]
[404085397,1769800233076,-500.0,0.00016373,2]
[404085398,1769800233087,-500.0,0.00016373,2]
[404085399,1769800233097,-500.0,0.00016373,2]
[404085400,1769800233107,-490.28446551,0.00016373,2]
[404085401,1769800233117,-500.0,0.00016373,2]
[404085402,1769800233127,-500.0,0.00016373,2]
[404085403,1769800233137,-500.0,0.00016373,2]
[404085404,1769800233147,-500.0,0.00016373,2]
[404085405,1769800233157,-500.0,0.00016373,2]
[404085406,1769800233167,-500.0,0.00016373,2]
[404085407,1769800233177,-500.0,0.00016373,2]
[404085408,1769800233186,-528.13,0.00016373,2]
[404085409,1769800233197,-1450.0,0.00016394,2]
[404085410,1769800233207,-500.0,0.00016411,2]
[404085411,1769800233216,-151.35,0.00016438,2]
[404085412,1769800233226,-500.0,0.00016468,2]
[404085413,1769800233235,-500.0,0.00016468,2]
[404085414,1769800233245,-1000.0,0.00016515,2]
[404085415,1769800233254,-166.66,0.00016529,2]
[404085416,1769800233264,-500.0,0.00016564,2]
[404085417,1769800233273,-201.51506654,0.00016574,2]
[404085418,1769800233283,-159.44,0.00016574,2]
[404085419,1769800233292,-600.0,0.00016575,2]
[404085420,1769800233302,-250.0,0.00016575,2]
[404085421,1769800233312,-528.13,0.00016647,2]
[404085422,1769800233322,-2331.6402192,0.00016668,2]
[404085423,1769800233331,-510.0,0.00016703,2]
[404085424,1769800233341,-165.61,0.00016712,2]
[404085425,1769800233351,-2477.89220823,0.00016722,2]
[404085426,1769800233360,-1296.9469,0.0001682,2]
[404085427,1769800233369,-1280.9594,0.00016822,2]
[404085428,1769800233378,-26274.596,0.00016822,2]
[404085429,1769800233387,-2946.9398,0.00016822,2]
[404085430,1769800233396,-2477.89220815,0.00016853,2]
[404085431,1769800233405,-420.0,0.00016916,2]
[404085432,1769800233415,-192.53517147,0.00016919,2]
[404085433,1769800233424,-500.0,0.00016919,2]
[404085434,1769800233435,-500.0,0.00016919,2]
[404085435,1769800233446,-500.0,0.00016919,2]
[404085436,1769800233455,-167.06696304,0.00016919,2]
[404085437,1769800233465,-481.27233715,0.00016919,2]
[404085438,1769800233475,-462.13325881,0.00016919,2]
[404085439,1769800233484,-500.0,0.00016919,2]
[404085440,1769800233504,-500.0,0.00016919,2]
[404085441,1769800233514,-500.0,0.00016919,2]
[404085442,1769800233523,-500.0,0.00016919,2]
[404085443,1769800233533,-500.0,0.00016919,2]
[404085444,1769800233546,-500.0,0.00016919,2]
[404085445,1769800233555,-500.0,0.00016919,2]